[Event "Titled Tuesday Blitz August 1 Early 2023"]
[White "Voege, Tobias"]
[Black "Mmukka"]
[WhiteFideId "1270513"]
[WhiteElo "2665"]
[BlackElo "2466"]
[Result "0-1"]
[Round "5"]
[TimeControl "180+1"]
[Date "2023.08.01"]
[WhiteClock "0:00:00"]
[BlackClock "0:00:05"]
[Board "104"]

1. e4 {[%clk 0:03:00]}  c5 {[%clk 0:02:59]} 2. Nf3 {[%clk 0:02:59]}  e6 {[%clk 0:02:59]} 3. d4 {[%clk 0:03:00]}  cxd4 {[%clk 0:02:59]} 4. Nxd4 {[%clk 0:03:00]}  a6 {[%clk 0:03:00]} 5. c4 {[%clk 0:02:59]}  Nf6 {[%clk 0:02:59]} 6. Nc3 {[%clk 0:03:00]}  Qc7 {[%clk 0:02:59]} 7. Bd3 {[%clk 0:02:56]}  Nc6 {[%clk 0:02:57]} 8. Nc2 {[%clk 0:02:43]}  Bd6 {[%clk 0:02:25]} 9. g3 {[%clk 0:02:28]}  h5 {[%clk 0:02:23]} 10. O-O {[%clk 0:02:17]}  h4 {[%clk 0:02:02]} 11. f4 {[%clk 0:02:16]}  Bc5+ {[%clk 0:02:02]} 12. Kg2 {[%clk 0:02:06]}  h3+ {[%clk 0:02:01]} 13. Kh1 {[%clk 0:02:05]}  d6 {[%clk 0:01:49]} 14. Be3 {[%clk 0:01:57]}  Bxe3 {[%clk 0:01:48]} 15. Nxe3 {[%clk 0:01:58]}  b6 {[%clk 0:01:47]} 16. Be2 {[%clk 0:01:44]}  Bb7 {[%clk 0:01:43]} 17. Bf3 {[%clk 0:01:44]}  Nd7 {[%clk 0:01:18]} 18. Qd2 {[%clk 0:01:31]}  g5 {[%clk 0:01:04]} 19. Rad1 {[%clk 0:01:27]}  gxf4 {[%clk 0:00:54]} 20. gxf4 {[%clk 0:01:28]}  O-O-O {[%clk 0:00:50]} 21. Qxd6 {[%clk 0:01:20]}  Qxd6 {[%clk 0:00:50]} 22. Rxd6 {[%clk 0:01:21]}  Nc5 {[%clk 0:00:48]} 23. Rfd1 {[%clk 0:01:11]}  Rxd6 {[%clk 0:00:43]} 24. Rxd6 {[%clk 0:01:12]}  Kc7 {[%clk 0:00:39]} 25. Rd1 {[%clk 0:01:11]}  Ne7 {[%clk 0:00:31]} 26. Kg1 {[%clk 0:01:05]}  f5 {[%clk 0:00:31]} 27. Kf2 {[%clk 0:00:57]}  fxe4 {[%clk 0:00:30]} 28. Bg4 {[%clk 0:00:51]}  Nd3+ {[%clk 0:00:28]} 29. Kg3 {[%clk 0:00:48]}  Nf5+ {[%clk 0:00:18]} 30. Nxf5 {[%clk 0:00:37]}  exf5 {[%clk 0:00:18]} 31. Bxf5 {[%clk 0:00:37]}  Nxb2 {[%clk 0:00:15]} 32. Nd5+ {[%clk 0:00:17]}  Kb8 {[%clk 0:00:15]} 33. Rd4 {[%clk 0:00:13]}  Nxc4 {[%clk 0:00:13]} 34. Bxe4 {[%clk 0:00:12]}  Nd6 {[%clk 0:00:12]} 35. Kf3 {[%clk 0:00:09]}  Re8 {[%clk 0:00:11]} 36. Nf6 {[%clk 0:00:08]}  Bxe4+ {[%clk 0:00:10]} 37. Nxe4 {[%clk 0:00:06]}  Nb5 {[%clk 0:00:06]} 38. Rd7 {[%clk 0:00:04]}  Nc7 {[%clk 0:00:06]} 39. Nd6 {[%clk 0:00:04]}  Rf8 {[%clk 0:00:04]} 40. f5 {[%clk 0:00:04]}  b5 {[%clk 0:00:05]} 41. Kg4 {[%clk 0:00:00]}  a5 {[%clk 0:00:05]} 0-1


[Site "https://www.chess.com"]

[Event "Titled Tuesday Blitz August 1 Early 2023"]
[White "benny_aizenberg"]
[Black "favesaul"]
[WhiteElo "2649"]
[BlackElo "2464"]
[Result "1-0"]
[Round "5"]
[TimeControl "180+1"]
[Date "2023.08.01"]
[WhiteClock "0:00:09"]
[BlackClock "0:00:05"]
[Board "106"]

1. c4 {[%clk 0:03:00]}  Nf6 {[%clk 0:02:56]} 2. Nc3 {[%clk 0:02:59]}  c5 {[%clk 0:02:50]} 3. Nf3 {[%clk 0:02:57]}  Nc6 {[%clk 0:02:49]} 4. g3 {[%clk 0:02:54]}  d5 {[%clk 0:02:47]} 5. cxd5 {[%clk 0:02:52]}  Nxd5 {[%clk 0:02:48]} 6. Bg2 {[%clk 0:02:52]}  Nc7 {[%clk 0:02:48]} 7. O-O {[%clk 0:02:51]}  e5 {[%clk 0:02:48]} 8. d3 {[%clk 0:02:23]}  Be7 {[%clk 0:02:47]} 9. Be3 {[%clk 0:02:20]}  O-O {[%clk 0:02:43]} 10. Rc1 {[%clk 0:02:19]}  Ne6 {[%clk 0:02:40]} 11. Nd2 {[%clk 0:02:13]}  Bd7 {[%clk 0:02:22]} 12. Nd5 {[%clk 0:02:04]}  Rc8 {[%clk 0:02:20]} 13. a3 {[%clk 0:01:35]}  b6 {[%clk 0:02:16]} 14. f4 {[%clk 0:01:08]}  exf4 {[%clk 0:02:15]} 15. gxf4 {[%clk 0:01:06]}  Ned4 {[%clk 0:02:10]} 16. Bxd4 {[%clk 0:01:02]}  cxd4 {[%clk 0:02:07]} 17. f5 {[%clk 0:00:56]}  Bg5 {[%clk 0:02:04]} 18. f6 {[%clk 0:00:52]}  g6 {[%clk 0:02:03]} 19. Rxc6 {[%clk 0:00:42]}  Bxc6 {[%clk 0:01:50]} 20. Ne7+ {[%clk 0:00:40]}  Kh8 {[%clk 0:01:51]} 21. Nxc6 {[%clk 0:00:36]}  Be3+ {[%clk 0:01:50]} 22. Kh1 {[%clk 0:00:35]}  Qd6 {[%clk 0:01:49]} 23. Nc4 {[%clk 0:00:34]}  Qe6 {[%clk 0:01:42]} 24. Nxa7 {[%clk 0:00:26]}  Rc5 {[%clk 0:01:35]} 25. Qb3 {[%clk 0:00:12]}  Rh5 {[%clk 0:01:00]} 26. Qxb6 {[%clk 0:00:11]}  Qg4 {[%clk 0:00:44]} 27. Qd6 {[%clk 0:00:10]}  Rg8 {[%clk 0:00:39]} 28. Ne5 {[%clk 0:00:09]}  Rxh2+ {[%clk 0:00:21]} 29. Kxh2 {[%clk 0:00:09]}  Qh4+ {[%clk 0:00:21]} 30. Bh3 {[%clk 0:00:09]}  Bf4+ {[%clk 0:00:21]} 31. Rxf4 {[%clk 0:00:08]}  Qxf4+ {[%clk 0:00:22]} 32. Kg2 {[%clk 0:00:09]}  Qg5+ {[%clk 0:00:05]} 33. Bg4 {[%clk 0:00:09]} 1-0


[Site "https://www.chess.com"]

[Event "Titled Tuesday Blitz August 1 Early 2023"]
[White "Zeman, Matyas"]
[Black "brm72"]
[WhiteFideId "364398"]
[WhiteElo "2444"]
[BlackElo "2601"]
[Result "1-0"]
[Round "5"]
[TimeControl "180+1"]
[Date "2023.08.01"]
[WhiteClock "0:00:06"]
[BlackClock "0:00:06"]
[Board "112"]

1. d4 {[%clk 0:03:00]}  Nf6 {[%clk 0:02:57]} 2. Nf3 {[%clk 0:02:49]}  g6 {[%clk 0:02:57]} 3. Nbd2 {[%clk 0:02:48]}  d5 {[%clk 0:02:57]} 4. e3 {[%clk 0:02:46]}  Bg7 {[%clk 0:02:57]} 5. b4 {[%clk 0:02:45]}  O-O {[%clk 0:02:55]} 6. c4 {[%clk 0:02:44]}  a5 {[%clk 0:02:52]} 7. b5 {[%clk 0:02:42]}  c6 {[%clk 0:02:30]} 8. a4 {[%clk 0:02:40]}  Re8 {[%clk 0:02:29]} 9. Bb2 {[%clk 0:02:32]}  Nbd7 {[%clk 0:02:28]} 10. bxc6 {[%clk 0:02:25]}  bxc6 {[%clk 0:02:29]} 11. cxd5 {[%clk 0:02:23]}  cxd5 {[%clk 0:02:30]} 12. Bb5 {[%clk 0:02:18]}  Ba6 {[%clk 0:02:28]} 13. O-O {[%clk 0:02:13]}  Bxb5 {[%clk 0:02:23]} 14. axb5 {[%clk 0:02:14]}  Qb6 {[%clk 0:02:24]} 15. Qa4 {[%clk 0:02:09]}  Reb8 {[%clk 0:02:24]} 16. Ba3 {[%clk 0:02:08]}  Qxb5 {[%clk 0:02:08]} 17. Bxe7 {[%clk 0:02:07]}  Ne4 {[%clk 0:01:56]} 18. Nxe4 {[%clk 0:01:46]}  dxe4 {[%clk 0:01:57]} 19. Nd2 {[%clk 0:01:45]}  Qd3 {[%clk 0:01:53]} 20. Rfd1 {[%clk 0:00:55]}  Nb6 {[%clk 0:01:52]} 21. Qc6 {[%clk 0:00:54]}  Re8 {[%clk 0:01:15]} 22. Bc5 {[%clk 0:00:32]}  Nc4 {[%clk 0:01:06]} 23. Nxc4 {[%clk 0:00:25]}  Qxc4 {[%clk 0:01:07]} 24. Rxa5 {[%clk 0:00:25]}  Rab8 {[%clk 0:00:48]} 25. Qa4 {[%clk 0:00:21]}  Qe2 {[%clk 0:00:46]} 26. Rf1 {[%clk 0:00:20]}  Rec8 {[%clk 0:00:45]} 27. Ra7 {[%clk 0:00:19]}  Bf8 {[%clk 0:00:27]} 28. Qd7 {[%clk 0:00:16]}  Qc4 {[%clk 0:00:27]} 29. d5 {[%clk 0:00:04]}  Qxf1+ {[%clk 0:00:03]} 30. Kxf1 {[%clk 0:00:05]}  Rb1+ {[%clk 0:00:03]} 31. Ke2 {[%clk 0:00:05]}  Rb2+ {[%clk 0:00:04]} 32. Kd1 {[%clk 0:00:06]}  Kh8 {[%clk 0:00:03]} 33. Bd4+ {[%clk 0:00:03]}  Bg7 {[%clk 0:00:04]} 34. Bxg7+ {[%clk 0:00:03]}  Kxg7 {[%clk 0:00:05]} 35. Qxf7+ {[%clk 0:00:04]}  Kh6 {[%clk 0:00:06]} 36. Qf4+ {[%clk 0:00:04]}  g5 {[%clk 0:00:05]} 37. Qf6+ {[%clk 0:00:04]}  Kh5 {[%clk 0:00:06]} 38. Rxh7+ {[%clk 0:00:05]}  Kg4 {[%clk 0:00:06]} 39. h3# {[%clk 0:00:06]} 1-0


[Site "https://www.chess.com"]

[Event "Titled Tuesday Blitz August 1 Early 2023"]
[White "Vaibhav Jayant Raut"]
[Black "Kayis, Gulcan Sena"]
[WhiteFideId "5089034"]
[BlackFideId "34553045"]
[WhiteElo "2599"]
[BlackElo "2443"]
[Result "1/2-1/2"]
[Round "5"]
[TimeControl "180+1"]
[Date "2023.08.01"]
[WhiteClock "0:00:03"]
[BlackClock "0:00:06"]
[Board "113"]

1. e4 {[%clk 0:02:56]}  e6 {[%clk 0:02:59]} 2. Qe2 {[%clk 0:02:54]}  c5 {[%clk 0:02:57]} 3. Nf3 {[%clk 0:02:53]}  Nc6 {[%clk 0:02:55]} 4. g3 {[%clk 0:02:53]}  d5 {[%clk 0:02:54]} 5. exd5 {[%clk 0:02:53]}  Qxd5 {[%clk 0:02:54]} 6. Nc3 {[%clk 0:02:49]}  Qd8 {[%clk 0:02:53]} 7. Bg2 {[%clk 0:02:50]}  Nf6 {[%clk 0:02:52]} 8. O-O {[%clk 0:02:50]}  Be7 {[%clk 0:02:51]} 9. Rd1 {[%clk 0:02:44]}  O-O {[%clk 0:02:50]} 10. d4 {[%clk 0:02:44]}  cxd4 {[%clk 0:02:48]} 11. Nb5 {[%clk 0:02:44]}  Qb6 {[%clk 0:02:47]} 12. Nbxd4 {[%clk 0:02:43]}  Nxd4 {[%clk 0:02:46]} 13. Nxd4 {[%clk 0:02:44]}  Bc5 {[%clk 0:02:46]} 14. c3 {[%clk 0:02:43]}  Bd7 {[%clk 0:02:44]} 15. Bg5 {[%clk 0:02:41]}  Rfd8 {[%clk 0:02:25]} 16. Rd2 {[%clk 0:02:26]}  Be7 {[%clk 0:02:19]} 17. Rad1 {[%clk 0:02:26]}  Bc6 {[%clk 0:02:13]} 18. Nxc6 {[%clk 0:02:02]}  bxc6 {[%clk 0:02:13]} 19. Qc4 {[%clk 0:01:54]}  Rac8 {[%clk 0:02:06]} 20. Be3 {[%clk 0:01:50]}  Qc7 {[%clk 0:02:01]} 21. Qa4 {[%clk 0:01:46]}  c5 {[%clk 0:01:57]} 22. Bf4 {[%clk 0:01:40]}  Qb6 {[%clk 0:01:53]} 23. c4 {[%clk 0:01:40]}  h6 {[%clk 0:01:38]} 24. Be5 {[%clk 0:01:37]}  Rxd2 {[%clk 0:01:31]} 25. Rxd2 {[%clk 0:01:38]}  Qb4 {[%clk 0:01:29]} 26. Qxb4 {[%clk 0:01:34]}  cxb4 {[%clk 0:01:30]} 27. b3 {[%clk 0:01:35]}  Rd8 {[%clk 0:01:26]} 28. Rxd8+ {[%clk 0:01:23]}  Bxd8 {[%clk 0:01:25]} 29. Bb8 {[%clk 0:01:19]}  a5 {[%clk 0:01:21]} 30. c5 {[%clk 0:01:16]}  Ne8 {[%clk 0:01:19]} 31. Ba7 {[%clk 0:01:08]}  Nf6 {[%clk 0:01:00]} 32. Kf1 {[%clk 0:00:59]}  Kf8 {[%clk 0:01:00]} 33. Ke2 {[%clk 0:00:57]}  Ke7 {[%clk 0:00:59]} 34. Kd3 {[%clk 0:00:51]}  e5 {[%clk 0:00:55]} 35. Kc4 {[%clk 0:00:39]}  Nd7 {[%clk 0:00:49]} 36. c6 {[%clk 0:00:34]}  Nb6+ {[%clk 0:00:47]} 37. Kb5 {[%clk 0:00:32]}  Nc8 {[%clk 0:00:46]} 38. Bc5+ {[%clk 0:00:32]}  Ke6 {[%clk 0:00:44]} 39. Ka6 {[%clk 0:00:27]}  f5 {[%clk 0:00:39]} 40. Bf1 {[%clk 0:00:21]}  Kd5 {[%clk 0:00:35]} 41. Bf8 {[%clk 0:00:18]}  g6 {[%clk 0:00:20]} 42. Kb7 {[%clk 0:00:12]}  Nd6+ {[%clk 0:00:19]} 43. Kb8 {[%clk 0:00:13]}  h5 {[%clk 0:00:18]} 44. c7 {[%clk 0:00:09]}  Bxc7+ {[%clk 0:00:14]} 45. Kxc7 {[%clk 0:00:10]}  Ne4 {[%clk 0:00:14]} 46. Bc4+ {[%clk 0:00:09]}  Kd4 {[%clk 0:00:14]} 47. f4 {[%clk 0:00:07]}  exf4 {[%clk 0:00:13]} 48. gxf4 {[%clk 0:00:08]}  Nf2 {[%clk 0:00:13]} 49. Kb6 {[%clk 0:00:06]}  Ng4 {[%clk 0:00:13]} 50. h4 {[%clk 0:00:06]}  Ne3 {[%clk 0:00:11]} 51. Bf7 {[%clk 0:00:07]}  Ng2 {[%clk 0:00:10]} 52. Bxg6 {[%clk 0:00:07]}  Nxf4 {[%clk 0:00:10]} 53. Bxf5 {[%clk 0:00:07]}  Ng2 {[%clk 0:00:10]} 54. Be7 {[%clk 0:00:07]}  Kc3 {[%clk 0:00:10]} 55. Kxa5 {[%clk 0:00:06]}  Kb2 {[%clk 0:00:10]} 56. Bxb4 {[%clk 0:00:06]}  Nxh4 {[%clk 0:00:09]} 57. Bg6 {[%clk 0:00:07]}  Nxg6 {[%clk 0:00:09]} 58. a4 {[%clk 0:00:02]}  Kxb3 {[%clk 0:00:09]} 59. Bd6 {[%clk 0:00:02]}  Kc4 {[%clk 0:00:08]} 60. Kb6 {[%clk 0:00:02]}  Kd5 {[%clk 0:00:08]} 61. Kc7 {[%clk 0:00:02]}  Kc4 {[%clk 0:00:08]} 62. a5 {[%clk 0:00:03]}  Kb5 {[%clk 0:00:08]} 63. Bb4 {[%clk 0:00:02]}  Ka6 {[%clk 0:00:07]} 64. Bc3 {[%clk 0:00:02]}  h4 {[%clk 0:00:07]} 65. Be1 {[%clk 0:00:02]}  h3 {[%clk 0:00:07]} 66. Bg3 {[%clk 0:00:03]}  Kxa5 {[%clk 0:00:07]} 67. Kd6 {[%clk 0:00:03]}  h2 {[%clk 0:00:06]} 68. Bxh2 {[%clk 0:00:03]} 1/2-1/2


[Site "https://www.chess.com"]

[Event "Titled Tuesday Blitz August 1 Early 2023"]
[White "GAO"]
[Black "Shukhman, Anna"]
[BlackFideId "54180058"]
[WhiteElo "2441"]
[BlackElo "2598"]
[Result "1/2-1/2"]
[Round "5"]
[TimeControl "180+1"]
[Date "2023.08.01"]
[WhiteClock "0:00:08"]
[BlackClock "0:00:09"]
[Board "114"]

1. Nf3 {[%clk 0:03:00]}  Nf6 {[%clk 0:02:58]} 2. d4 {[%clk 0:02:59]}  g6 {[%clk 0:02:59]} 3. Bg5 {[%clk 0:02:59]}  Bg7 {[%clk 0:02:59]} 4. Nbd2 {[%clk 0:02:59]}  d5 {[%clk 0:02:59]} 5. e3 {[%clk 0:02:57]}  O-O {[%clk 0:02:59]} 6. Bd3 {[%clk 0:02:58]}  c6 {[%clk 0:02:59]} 7. O-O {[%clk 0:02:58]}  h6 {[%clk 0:02:57]} 8. Bh4 {[%clk 0:02:58]}  a5 {[%clk 0:02:36]} 9. e4 {[%clk 0:02:51]}  dxe4 {[%clk 0:02:34]} 10. Nxe4 {[%clk 0:02:52]}  Nxe4 {[%clk 0:02:34]} 11. Bxe4 {[%clk 0:02:51]}  Nd7 {[%clk 0:02:34]} 12. Re1 {[%clk 0:02:46]}  Nf6 {[%clk 0:02:33]} 13. Bd3 {[%clk 0:02:46]}  Be6 {[%clk 0:02:22]} 14. c3 {[%clk 0:02:38]}  Bd5 {[%clk 0:02:20]} 15. Ne5 {[%clk 0:02:37]}  b5 {[%clk 0:02:13]} 16. Qd2 {[%clk 0:02:34]}  Re8 {[%clk 0:02:06]} 17. a4 {[%clk 0:02:27]}  Qb6 {[%clk 0:02:02]} 18. Bxf6 {[%clk 0:02:06]}  exf6 {[%clk 0:02:01]} 19. Nd7 {[%clk 0:01:58]}  Qc7 {[%clk 0:02:00]} 20. Nc5 {[%clk 0:01:59]}  f5 {[%clk 0:02:00]} 21. axb5 {[%clk 0:01:58]}  cxb5 {[%clk 0:01:57]} 22. Bxb5 {[%clk 0:01:59]}  Reb8 {[%clk 0:01:56]} 23. c4 {[%clk 0:01:54]}  Bc6 {[%clk 0:01:49]} 24. Bxc6 {[%clk 0:01:52]}  Qxc6 {[%clk 0:01:50]} 25. Rxa5 {[%clk 0:01:45]}  Rxa5 {[%clk 0:01:49]} 26. Qxa5 {[%clk 0:01:46]}  Bxd4 {[%clk 0:01:47]} 27. b4 {[%clk 0:01:43]}  Bc3 {[%clk 0:01:39]} 28. Rb1 {[%clk 0:01:31]}  Ra8 {[%clk 0:01:21]} 29. Qb5 {[%clk 0:01:12]}  Qxb5 {[%clk 0:01:20]} 30. cxb5 {[%clk 0:01:13]}  Rb8 {[%clk 0:01:16]} 31. Rb3 {[%clk 0:01:11]}  Bd2 {[%clk 0:01:12]} 32. Kf1 {[%clk 0:00:53]}  Rxb5 {[%clk 0:01:10]} 33. Nd3 {[%clk 0:00:53]}  Kf8 {[%clk 0:01:07]} 34. Ke2 {[%clk 0:00:53]}  Bg5 {[%clk 0:01:06]} 35. Ra3 {[%clk 0:00:52]}  Be7 {[%clk 0:01:04]} 36. Ra8+ {[%clk 0:00:51]}  Kg7 {[%clk 0:01:03]} 37. Ra4 {[%clk 0:00:47]}  Kf6 {[%clk 0:01:02]} 38. Kd2 {[%clk 0:00:47]}  Ke6 {[%clk 0:01:01]} 39. Kc3 {[%clk 0:00:47]}  Kd5 {[%clk 0:01:00]} 40. Nf4+ {[%clk 0:00:39]}  Ke4 {[%clk 0:00:58]} 41. Nd3 {[%clk 0:00:39]}  Kd5 {[%clk 0:00:55]} 42. Ra5 {[%clk 0:00:35]}  Kc6 {[%clk 0:00:45]} 43. Ra6+ {[%clk 0:00:33]}  Kd7 {[%clk 0:00:41]} 44. Kc4 {[%clk 0:00:32]}  Rb8 {[%clk 0:00:40]} 45. Nc5+ {[%clk 0:00:31]}  Bxc5 {[%clk 0:00:39]} 46. bxc5 {[%clk 0:00:31]}  Rb2 {[%clk 0:00:38]} 47. c6+ {[%clk 0:00:27]}  Kc7 {[%clk 0:00:37]} 48. Ra7+ {[%clk 0:00:27]}  Kxc6 {[%clk 0:00:37]} 49. Rxf7 {[%clk 0:00:28]}  Rxf2 {[%clk 0:00:36]} 50. Rf6+ {[%clk 0:00:28]}  Kd7 {[%clk 0:00:35]} 51. Rxg6 {[%clk 0:00:29]}  Ke7 {[%clk 0:00:33]} 52. Kd4 {[%clk 0:00:27]}  Kf7 {[%clk 0:00:33]} 53. Rg3 {[%clk 0:00:24]}  f4 {[%clk 0:00:31]} 54. Rg4 {[%clk 0:00:21]}  f3 {[%clk 0:00:24]} 55. Rf4+ {[%clk 0:00:13]}  Kg6 {[%clk 0:00:23]} 56. Rxf3 {[%clk 0:00:12]}  Rxg2 {[%clk 0:00:22]} 57. h3 {[%clk 0:00:13]}  Kg5 {[%clk 0:00:21]} 58. Ke3 {[%clk 0:00:13]}  h5 {[%clk 0:00:20]} 59. Ke4 {[%clk 0:00:12]}  Kh4 {[%clk 0:00:20]} 60. Kf4 {[%clk 0:00:11]}  Rg8 {[%clk 0:00:19]} 61. Ke3 {[%clk 0:00:11]}  Re8+ {[%clk 0:00:17]} 62. Kf2 {[%clk 0:00:11]}  Rg8 {[%clk 0:00:17]} 63. Ra3 {[%clk 0:00:10]}  Rg6 {[%clk 0:00:16]} 64. Rb3 {[%clk 0:00:10]}  Rg5 {[%clk 0:00:15]} 65. Ra3 {[%clk 0:00:11]}  Rf5+ {[%clk 0:00:15]} 66. Kg2 {[%clk 0:00:10]}  Rf4 {[%clk 0:00:16]} 67. Rb3 {[%clk 0:00:11]}  Re4 {[%clk 0:00:16]} 68. Rb2 {[%clk 0:00:10]}  Kg5 {[%clk 0:00:15]} 69. Rb5+ {[%clk 0:00:09]}  Kf4 {[%clk 0:00:14]} 70. Rb2 {[%clk 0:00:10]}  h4 {[%clk 0:00:14]} 71. Rf2+ {[%clk 0:00:10]}  Ke3 {[%clk 0:00:12]} 72. Ra2 {[%clk 0:00:11]}  Rd4 {[%clk 0:00:11]} 73. Ra3+ {[%clk 0:00:11]}  Kf4 {[%clk 0:00:11]} 74. Ra2 {[%clk 0:00:10]}  Re4 {[%clk 0:00:10]} 75. Rb2 {[%clk 0:00:10]}  Re3 {[%clk 0:00:10]} 76. Rb4+ {[%clk 0:00:08]}  Kg5 {[%clk 0:00:09]} 77. Rb5+ {[%clk 0:00:08]}  Kf4 {[%clk 0:00:09]} 78. Rb4+ {[%clk 0:00:08]}  Kg5 {[%clk 0:00:09]} 79. Rb5+ {[%clk 0:00:08]}  Kf4 {[%clk 0:00:09]} 80. Rb4+ {[%clk 0:00:08]} 1/2-1/2


[Site "https://www.chess.com"]

[Event "Titled Tuesday Blitz August 1 Early 2023"]
[White "Lana Rodriguez, David"]
[Black "Rozhkov, Viacheslav"]
[WhiteFideId "2270803"]
[BlackFideId "4181484"]
[WhiteElo "2587"]
[BlackElo "2439"]
[Result "1/2-1/2"]
[Round "5"]
[TimeControl "180+1"]
[Date "2023.08.01"]
[WhiteClock "0:00:45"]
[BlackClock "0:00:08"]
[Board "116"]

1. e4 {[%clk 0:02:56]}  c5 {[%clk 0:03:00]} 2. Nf3 {[%clk 0:02:56]}  Nc6 {[%clk 0:03:00]} 3. c3 {[%clk 0:02:56]}  Nf6 {[%clk 0:02:59]} 4. e5 {[%clk 0:02:55]}  Nd5 {[%clk 0:03:00]} 5. d4 {[%clk 0:02:55]}  cxd4 {[%clk 0:03:00]} 6. Bc4 {[%clk 0:02:56]}  Nb6 {[%clk 0:03:00]} 7. Bb3 {[%clk 0:02:56]}  d5 {[%clk 0:03:00]} 8. exd6 {[%clk 0:02:56]}  Qxd6 {[%clk 0:03:00]} 9. cxd4 {[%clk 0:02:56]}  Bf5 {[%clk 0:02:57]} 10. Nc3 {[%clk 0:02:55]}  e6 {[%clk 0:02:56]} 11. O-O {[%clk 0:02:53]}  Be7 {[%clk 0:02:49]} 12. d5 {[%clk 0:02:53]}  exd5 {[%clk 0:02:49]} 13. Nxd5 {[%clk 0:02:54]}  Nxd5 {[%clk 0:02:49]} 14. Qxd5 {[%clk 0:02:55]}  Qxd5 {[%clk 0:02:48]} 15. Bxd5 {[%clk 0:02:56]}  O-O {[%clk 0:02:48]} 16. Be3 {[%clk 0:02:52]}  Bf6 {[%clk 0:02:45]} 17. Bxc6 {[%clk 0:02:48]}  bxc6 {[%clk 0:02:45]} 18. Bd4 {[%clk 0:02:49]}  Be7 {[%clk 0:02:35]} 19. Rac1 {[%clk 0:02:46]}  Rfc8 {[%clk 0:02:22]} 20. Bc5 {[%clk 0:02:46]}  Bf6 {[%clk 0:02:21]} 21. Bd4 {[%clk 0:02:46]}  Be7 {[%clk 0:02:21]} 22. Rfe1 {[%clk 0:02:42]}  Bb4 {[%clk 0:02:17]} 23. Bc3 {[%clk 0:02:41]}  Bd6 {[%clk 0:02:07]} 24. Nd4 {[%clk 0:02:36]}  Bg6 {[%clk 0:02:00]} 25. Ba5 {[%clk 0:02:26]}  Rab8 {[%clk 0:01:40]} 26. b3 {[%clk 0:02:26]}  c5 {[%clk 0:01:39]} 27. Nf3 {[%clk 0:02:18]}  h6 {[%clk 0:01:32]} 28. Red1 {[%clk 0:02:16]}  Bf8 {[%clk 0:00:58]} 29. Nd2 {[%clk 0:02:13]}  Rb5 {[%clk 0:00:51]} 30. Bc3 {[%clk 0:02:11]}  Rb6 {[%clk 0:00:44]} 31. Nc4 {[%clk 0:02:11]}  Re6 {[%clk 0:00:45]} 32. Re1 {[%clk 0:02:10]}  Rce8 {[%clk 0:00:44]} 33. Rxe6 {[%clk 0:02:10]}  Rxe6 {[%clk 0:00:45]} 34. Ne3 {[%clk 0:02:10]}  Be7 {[%clk 0:00:36]} 35. Re1 {[%clk 0:02:08]}  Bg5 {[%clk 0:00:32]} 36. Nd5 {[%clk 0:01:45]}  Rxe1+ {[%clk 0:00:31]} 37. Bxe1 {[%clk 0:01:46]}  Bb1 {[%clk 0:00:30]} 38. Nc3 {[%clk 0:01:46]}  Bc2 {[%clk 0:00:30]} 39. g3 {[%clk 0:01:39]}  h5 {[%clk 0:00:29]} 40. Kf1 {[%clk 0:01:33]}  Bd3+ {[%clk 0:00:27]} 41. Kg2 {[%clk 0:01:33]}  Kf8 {[%clk 0:00:24]} 42. Kf3 {[%clk 0:01:24]}  Ke7 {[%clk 0:00:24]} 43. Na4 {[%clk 0:01:22]}  Kd6 {[%clk 0:00:23]} 44. Bc3 {[%clk 0:01:20]}  g6 {[%clk 0:00:20]} 45. Ba5 {[%clk 0:01:14]}  Bb1 {[%clk 0:00:18]} 46. Nc3 {[%clk 0:01:14]}  Bd3 {[%clk 0:00:19]} 47. Kg2 {[%clk 0:01:12]}  Bf6 {[%clk 0:00:17]} 48. f4 {[%clk 0:01:03]}  Bd4 {[%clk 0:00:16]} 49. Kf3 {[%clk 0:01:03]}  f5 {[%clk 0:00:13]} 50. a3 {[%clk 0:00:53]}  Bxc3 {[%clk 0:00:11]} 51. Bxc3 {[%clk 0:00:53]}  Bc2 {[%clk 0:00:12]} 52. b4 {[%clk 0:00:53]}  cxb4 {[%clk 0:00:12]} 53. Bxb4+ {[%clk 0:00:53]}  Kd5 {[%clk 0:00:13]} 54. Ke3 {[%clk 0:00:54]}  Be4 {[%clk 0:00:12]} 55. Bc3 {[%clk 0:00:53]}  Bc2 {[%clk 0:00:11]} 56. Ba5 {[%clk 0:00:53]}  Be4 {[%clk 0:00:12]} 57. Kd2 {[%clk 0:00:53]}  Kc4 {[%clk 0:00:11]} 58. Bd8 {[%clk 0:00:51]}  Bd3 {[%clk 0:00:11]} 59. Be7 {[%clk 0:00:50]}  Be4 {[%clk 0:00:11]} 60. Ke3 {[%clk 0:00:50]}  Bd3 {[%clk 0:00:10]} 61. a4 {[%clk 0:00:47]}  a5 {[%clk 0:00:07]} 62. Bd8 {[%clk 0:00:46]}  Bc2 {[%clk 0:00:07]} 63. Bxa5 {[%clk 0:00:47]}  Bxa4 {[%clk 0:00:08]} 64. Kf3 {[%clk 0:00:44]}  Bc6+ {[%clk 0:00:08]} 65. Ke3 {[%clk 0:00:44]}  Bb5 {[%clk 0:00:07]} 66. Be1 {[%clk 0:00:44]}  Bc6 {[%clk 0:00:07]} 67. Ba5 {[%clk 0:00:40]}  Be4 {[%clk 0:00:08]} 68. Bd8 {[%clk 0:00:41]}  Bd5 {[%clk 0:00:08]} 69. Bh4 {[%clk 0:00:42]}  Be4 {[%clk 0:00:09]} 70. Kd2 {[%clk 0:00:43]}  Bd5 {[%clk 0:00:09]} 71. Kc2 {[%clk 0:00:43]}  Kd4 {[%clk 0:00:09]} 72. Kd2 {[%clk 0:00:44]}  Ke4 {[%clk 0:00:10]} 73. Ke2 {[%clk 0:00:44]}  Bc4+ {[%clk 0:00:10]} 74. Kf2 {[%clk 0:00:45]}  Bd3 {[%clk 0:00:11]} 75. Bf6 {[%clk 0:00:46]}  Bc4 {[%clk 0:00:11]} 76. Bc3 {[%clk 0:00:47]}  Bd3 {[%clk 0:00:12]} 77. Ba1 {[%clk 0:00:47]}  Bc4 {[%clk 0:00:13]} 78. Kg2 {[%clk 0:00:48]}  Bd3 {[%clk 0:00:13]} 79. Kh3 {[%clk 0:00:49]}  Bf1+ {[%clk 0:00:13]} 80. Kh4 {[%clk 0:00:50]}  Bb5 {[%clk 0:00:11]} 81. Kg5 {[%clk 0:00:50]}  Be8 {[%clk 0:00:12]} 82. Kf6 {[%clk 0:00:51]}  Kf3 {[%clk 0:00:10]} 83. Ke7 {[%clk 0:00:50]}  Bb5 {[%clk 0:00:10]} 84. Bf6 {[%clk 0:00:43]}  Kg2 {[%clk 0:00:09]} 85. Kf7 {[%clk 0:00:42]}  Kxh2 {[%clk 0:00:06]} 86. Bh4 {[%clk 0:00:42]}  Be2 {[%clk 0:00:07]} 87. Kxg6 {[%clk 0:00:43]}  Bg4 {[%clk 0:00:07]} 88. Kg5 {[%clk 0:00:44]}  Kg2 {[%clk 0:00:06]} 89. Kg6 {[%clk 0:00:45]}  Kf3 {[%clk 0:00:07]} 90. Kf6 {[%clk 0:00:46]}  Ke3 {[%clk 0:00:07]} 91. Ke5 {[%clk 0:00:47]}  Kf3 {[%clk 0:00:08]} 92. Kd4 {[%clk 0:00:47]}  Ke2 {[%clk 0:00:09]} 93. Bg5 {[%clk 0:00:47]}  Bf3 {[%clk 0:00:08]} 94. Bh4 {[%clk 0:00:45]}  Bg4 {[%clk 0:00:08]} 1/2-1/2


[Site "https://www.chess.com"]